Workbook

Sheet ORÇAMENTO
A2: Planilha Orçamentária de Serviços | J2: DATA: 21/05/2015
A3: Objeto: FECHAMENTO EM PAREDE DE BLOCOS DE CONCRETO DO SECADOR DE GRÃOS | J3: BDI: 25,00%
A4: Endereço: CAPOEIRA GRANDE
A5: Item | B5: Código | C5: Descrição | D5: Unidade | E5: Quant. | F5: Preço Unitário | H5: Total Unitário | I5: Preço Total de Material | K5: Total Item
F6: Material | G6: Mão de obra | I6: Material | J6: Mão de obra
A7: 1 | C7: SERVIÇOS INICIAIS | K7: =K8 -> 200
A8: 1.1 | C8: Taxa de ART, plotagens e cópias de documentos | D8: vb | E8: 1 | F8: 200 | G8: 0 | H8: 500 | I8: =ROUND(E8*F8,2) -> 200 | J8: =ROUND(E8*G8,2) -> 0 | K8: =ROUND(I8+J8,2) -> 200
A10: 2 | C10: FUNDAÇÃO | K10: =SUM(K11:K16) -> 7119.52
A11: 2.1 | B11: 78018 | C11: Escavação manual a céu aberto em material de 1A categoria, em profundidade até 0,50m | D11: m³ | E11: 1.88 | F11: 14.79 | G11: 26.73 | H11: =F11+G11 -> 41.52 | I11: =ROUND(E11*F11,2) -> 27.81 | J11: =ROUND(E11*G11,2) -> 50.25 | K11: =ROUND(I11+J11,2) -> 78.06
A12: 2.2 | B12: 74164/4 | C12: Lastro de brita, para fundo de viga baldrame, espessura 5cm | D12: m³ | E12: 0.5 | F12: 76.64 | G12: 22.28 | H12: =F12+G12 -> 98.92 | I12: =ROUND(E12*F12,2) -> 38.32 | J12: =ROUND(E12*G12,2) -> 11.14 | K12: =ROUND(I12+J12,2) -> 49.46
A13: 2.3 | B13: 74156/3 | C13: Estaca a trado (broca) diâmetro de 20cm, sem armação | D13: m | E13: 33 | F13: 24.83 | G13: 29.41 | H13: =F13+G13 -> 54.24 | I13: =ROUND(E13*F13,2) -> 819.39 | J13: =ROUND(E13*G13,2) -> 970.53 | K13: =ROUND(I13+J13,2) -> 1789.92
A14: 2.4 | B14: 73990/1 | C14: Armação aço CA-50 para 1m³ de concreto (para estacas e viga baldrame) | D14: und | E14: 3.61 | F14: 456.46 | G14: 187.95 | H14: =F14+G14 -> 644.41 | I14: =ROUND(E14*F14,2) -> 1647.82 | J14: =ROUND(E14*G14,2) -> 678.5 | K14: =ROUND(I14+J14,2) -> 2326.32
A15: 2.5 | B15: 73406 | C15: Concreto Fck=15MPa (1:2,5:3), incluído preparo mecânico, lançamento e adensamento | D15: m³ | E15: 3.06 | F15: 375 | G15: 163.09 | H15: =F15+G15 -> 538.09 | I15: =ROUND(E15*F15,2) -> 1147.5 | J15: =ROUND(E15*G15,2) -> 499.06 | K15: =ROUND(I15+J15,2) -> 1646.56
A16: 2.6 | B16: 74007/2 | C16: Forma de tábuas madeira de 3A para peças de concreto armado, reaproveitamento 2x, inclusive montagem e desmontagem | D16: m² | E16: 20 | F16: 34.4 | G16: 27.06 | H16: =F16+G16 -> 61.46 | I16: =ROUND(E16*F16,2) -> 688 | J16: =ROUND(E16*G16,2) -> 541.2 | K16: =ROUND(I16+J16,2) -> 1229.2
A18: 3 | C18: SUPERESTRUTURA | K18: =SUM(K19:K30) -> 8740.18
A19: 3.1 | C19: Pilares e Pilaretes (oitão)
A20: 3.1.1 | B20: 74007/2 | C20: Forma de tábuas madeira de 3A para peças de concreto armado, reaproveitamento 2x, inclusive montagem e desmontagem | D20: m² | E20: 22.95 | F20: 34.4 | G20: 27.06 | H20: =F20+G20 -> 61.46 | I20: =ROUND(E20*F20,2) -> 789.48 | J20: =ROUND(E20*G20,2) -> 621.03 | K20: =ROUND(I20+J20,2) -> 1410.51
A21: 3.1.2 | B21: 73990/1 | C21: Armação aço CA-50 para 1m³ de concreto | D21: und | E21: 1.95 | F21: 456.46 | G21: 187.95 | H21: =F21+G21 -> 644.41 | I21: =ROUND(E21*F21,2) -> 890.1 | J21: =ROUND(E21*G21,2) -> 366.5 | K21: =ROUND(I21+J21,2) -> 1256.6
A22: 3.1.3 | B22: 73406 | C22: Concreto Fck=15MPa (1:2,5:3), incluído preparo mecânico, lançamento e adensamento | D22: m³ | E22: 2.05 | F22: 375 | G22: 163.09 | H22: =F22+G22 -> 538.09 | I22: =ROUND(E22*F22,2) -> 768.75 | J22: =ROUND(E22*G22,2) -> 334.33 | K22: =ROUND(I22+J22,2) -> 1103.08
A23: 3.2 | C23: Vigas de respaldo e fechamento
A24: 3.2.1 | B24: 74007/2 | C24: Forma de tábuas madeira de 3A para peças de concreto armado, reaproveitamento 2x, inclusive montagem e desmontagem | D24: m² | E24: 15.3 | F24: 34.4 | G24: 27.06 | H24: =F24+G24 -> 61.46 | I24: =ROUND(E24*F24,2) -> 526.32 | J24: =ROUND(E24*G24,2) -> 414.02 | K24: =ROUND(I24+J24,2) -> 940.34
A25: 3.2.2 | B25: 73990/1 | C25: Armação aço CA-50 para 1m³ de concreto | D25: und | E25: 1 | F25: 456.46 | G25: 187.95 | H25: =F25+G25 -> 644.41 | I25: =ROUND(E25*F25,2) -> 456.46 | J25: =ROUND(E25*G25,2) -> 187.95 | K25: =ROUND(I25+J25,2) -> 644.41
A26: 3.2.3 | B26: 73406 | C26: Concreto Fck=15MPa (1:2,5:3), incluído preparo mecânico, lançamento e adensamento | D26: m³ | E26: 1.05 | F26: 375 | G26: 163.09 | H26: =F26+G26 -> 538.09 | I26: =ROUND(E26*F26,2) -> 393.75 | J26: =ROUND(E26*G26,2) -> 171.24 | K26: =ROUND(I26+J26,2) -> 564.99
A27: 3.3 | C27: Vergas e contravergas
A28: 3.3.1 | B28: 74007/2 | C28: Forma de tábuas madeira de 3A para peças de concreto armado, reaproveitamento 2x, inclusive montagem e desmontagem | D28: m² | E28: 20.35 | F28: 34.4 | G28: 27.06 | H28: =F28+G28 -> 61.46 | I28: =ROUND(E28*F28,2) -> 700.04 | J28: =ROUND(E28*G28,2) -> 550.67 | K28: =ROUND(I28+J28,2) -> 1250.71
A29: 3.3.2 | B29: 73990/1 | C29: Armação aço CA-50 para 1m³ de concreto | D29: und | E29: 1.3 | F29: 456.46 | G29: 187.95 | H29: =F29+G29 -> 644.41 | I29: =ROUND(E29*F29,2) -> 593.4 | J29: =ROUND(E29*G29,2) -> 244.34 | K29: =ROUND(I29+J29,2) -> 837.74
A30: 3.3.3 | B30: 73406 | C30: Concreto Fck=15MPa (1:2,5:3), incluído preparo mecânico, lançamento e adensamento | D30: m³ | E30: 1.36 | F30: 375 | G30: 163.09 | H30: =F30+G30 -> 538.09 | I30: =ROUND(E30*F30,2) -> 510 | J30: =ROUND(E30*G30,2) -> 221.8 | K30: =ROUND(I30+J30,2) -> 731.8
A32: 4 | C32: ALVENARIA E REVESTIMENTOS | K32: =SUM(K33:K35) -> 25577.74
A33: 4.1 | B33: 87455 | C33: Alvenaria de vedação de blocos vazados de concreto de 14x19x39cm (espessura 14cm) de paredes com área líquida maior ou igual a 6m², sem vãos e argamassa de assentamento com preparo em betoneira | D33: m² | E33: 266.4 | F33: 47.75 | G33: 19.54 | H33: =F33+G33 -> 67.29 | I33: =ROUND(E33*F33,2) -> 12720.6 | J33: =ROUND(E33*G33,2) -> 5205.46 | K33: =ROUND(I33+J33,2) -> 17926.06
A34: 4.2 | B34: 73875/1 | C34: Locação de andaime metálico tubular tipo torre | D34: M/mês | E34: 62 | F34: 16.84 | G34: 5.58 | H34: =ROUND(F34+G34,2) -> 22.42 | I34: =ROUND(E34*F34,2) -> 1044.08 | J34: =ROUND(E34*G34,2) -> 345.96 | K34: =ROUND(I34+J34,2) -> 1390.04
A35: 4.3 | B35: 88423 | C35: Aplicação manual de pintura com tinta texturizada acrílica em paredes internas, uma cor | D35: m² | E35: 266 | F35: 20.29 | G35: 3.25 | H35: =ROUND(F35+G35,2) -> 23.54 | I35: =ROUND(E35*F35,2) -> 5397.14 | J35: =ROUND(E35*G35,2) -> 864.5 | K35: =ROUND(I35+J35,2) -> 6261.64
A37: 5 | C37: PISO DO BARRACÃO | K37: =SUM(K38:K42) -> 14116.28
A38: 5.1 | B38: 5622 | C38: Regularização e compactação manual de terreno com soquete | D38: m² | E38: 153.85 | F38: 2.04 | G38: 3.68 | H38: =F38+G38 -> 5.72 | I38: =ROUND(E38*F38,2) -> 313.85 | J38: =ROUND(E38*G38,2) -> 566.17 | K38: =ROUND(I38+J38,2) -> 880.02
A39: 5.2 | B39: 74164/4 | C39: Lastro de brita, espessura 5cm | D39: m³ | E39: 7.7 | F39: 76.64 | G39: 22.28 | H39: =F39+G39 -> 98.92 | I39: =ROUND(E39*F39,2) -> 590.13 | J39: =ROUND(E39*G39,2) -> 171.56 | K39: =ROUND(I39+J39,2) -> 761.69
A40: 5.3 | B40: 72183 | C40: Piso em concreto 20MPa preparo mecânico, espessura 7cm, com armação em tela soldada | D40: m² | E40: 103.95 | F40: 56.61 | G40: 30.51 | H40: =F40+G40 -> 87.12 | I40: =ROUND(E40*F40,2) -> 5884.61 | J40: =ROUND(E40*G40,2) -> 3171.51 | K40: =ROUND(I40+J40,2) -> 9056.12
A41: 5.4 | B41: 73994/1 | C41: Armação em tela de aço soldada nervurada Q-138, aço CA-60, 4,2mm, malha 10x10cm – para entrada de caminhões – tela em duas camadas | D41: kg | E41: 120.76 | F41: 6.91 | G41: 0.76 | H41: =F41+G41 -> 7.67 | I41: =ROUND(E41*F41,2) -> 834.45 | J41: =ROUND(E41*G41,2) -> 91.78 | K41: =ROUND(I41+J41,2) -> 926.23
A42: 5.5 | B42: 74138/2 | C42: Concreto usinado bombeado Fck=20MPa, inclusive lançamento e adensamento – para entrada de caminhões | D42: m³ | E42: 6.3 | F42: 349.49 | G42: 46.1 | H42: =F42+G42 -> 395.59 | I42: =ROUND(E42*F42,2) -> 2201.79 | J42: =ROUND(E42*G42,2) -> 290.43 | K42: =ROUND(I42+J42,2) -> 2492.22
A44: 6 | C44: BASE PARA O SECADOR | K44: =SUM(K45:K47) -> 2718.38
A45: 6.1 | B45: 87509 | C45: Alvenaria de vedação de blocos cerâmicos furados na horizontal de 14x9x19cm (espessura 14cm) de paredes com área líquida maior ou igual a 6m² sem vãos e argamassa de assentamento com preparo em betoneira | D45: m² | E45: 11.65 | F45: 57.81 | G45: 66.76 | H45: =F45+G45 -> 124.57 | I45: =ROUND(E45*F45,2) -> 673.49 | J45: =ROUND(E45*G45,2) -> 777.75 | K45: =ROUND(I45+J45,2) -> 1451.24
A46: 6.2 | B46: 73675 | C46: Piso de concreto acabamento rústico espessura 7cm com juntas em madeira | D46: m² | E46: 12.55 | F46: 40.9 | G46: 34.65 | H46: =F46+G46 -> 75.55 | I46: =ROUND(E46*F46,2) -> 513.3 | J46: =ROUND(E46*G46,2) -> 434.86 | K46: =ROUND(I46+J46,2) -> 948.16
A47: 6.3 | B47: 73397 | C47: Emboço cimento areia 1:4 espessura=1,5cm, incluindo chapisco 1:3, espessura=9mm | D47: m² | E47: 10.25 | F47: 15.76 | G47: 15.36 | H47: =F47+G47 -> 31.12 | I47: =ROUND(E47*F47,2) -> 161.54 | J47: =ROUND(E47*G47,2) -> 157.44 | K47: =ROUND(I47+J47,2) -> 318.98
A49: 7 | C49: ESQUADRIAS | K49: =SUM(K50:K54) -> 16042.91
A50: 7.1 | B50: 68054 | C50: Portão de ferro em chapa galvanizada 14 GSG | D50: m² | E50: 19.31 | F50: 195.19 | G50: 40.29 | H50: =F50+G50 -> 235.48 | I50: =ROUND(E50*F50,2) -> 3769.12 | J50: =ROUND(E50*G50,2) -> 778 | K50: =ROUND(I50+J50,2) -> 4547.12
A51: 7.2 | B51: 73933/2 | C51: Porta de ferro de abrir, tipo chapa lisa, com guarnições | D51: m² | E51: 1.89 | F51: 372.13 | G51: 68.3 | H51: =ROUND(F51+G51,2) -> 440.43 | I51: =ROUND(E51*F51,2) -> 703.33 | J51: =ROUND(E51*G51,2) -> 129.09 | K51: =ROUND(I51+J51,2) -> 832.42
A52: 7.3 | B52: 73446 | C52: Pintura de superfície metálica com tinta grafite | D52: m² | E52: 53 | F52: 8.7 | G52: 11.65 | H52: =F52+G52 -> 20.35 | I52: =ROUND(E52*F52,2) -> 461.1 | J52: =ROUND(E52*G52,2) -> 617.45 | K52: =ROUND(I52+J52,2) -> 1078.55
A53: 7.4 | B53: 6104 | C53: Janela basculante de ferro em cantoneira 5/8” X 1/8”, linha popular | D53: m² | E53: 18 | F53: 393.99 | G53: 24.66 | H53: =F53+G53 -> 418.65 | I53: =ROUND(E53*F53,2) -> 7091.82 | J53: =ROUND(E53*G53,2) -> 443.88 | K53: =ROUND(I53+J53,2) -> 7535.7
A54: 7.5 | B54: 72117 | C54: Vidro liso comum transparente, espessura 4mm | D54: m² | E54: 18 | F54: 102.74 | G54: 11.1 | H54: =F54+G54 -> 113.84 | I54: =ROUND(E54*F54,2) -> 1849.32 | J54: =ROUND(E54*G54,2) -> 199.8 | K54: =ROUND(I54+J54,2) -> 2049.12
A56: 8 | C56: ESCRITÓRIO E BWC | K56: =SUM(K57:K84) -> 16163.29
A57: 8.1 | C57: Fundação e Superestrutura
A58: 8.1.1 | B58: 78018 | C58: Escavação manual a céu aberto em material de 1A categoria, em profundidade até 0,50m | D58: m³ | E58: 0.5 | F58: 14.79 | G58: 26.73 | H58: =F58+G58 -> 41.52 | I58: 7.39 | J58: =ROUND(E58*G58,2) -> 13.37 | K58: =ROUND(I58+J58,2) -> 20.76
A59: 8.1.2 | B59: 74156/3 | C59: Estaca a trado (broca) diâmetro de 20cm, sem armação | D59: m | E59: 18 | F59: 24.83 | G59: 29.41 | H59: =F59+G59 -> 54.24 | I59: =ROUND(E59*F59,2) -> 446.94 | J59: =ROUND(E59*G59,2) -> 529.38 | K59: =ROUND(I59+J59,2) -> 976.32
A60: 8.1.3 | B60: 5622 | C60: Regularização e compactação manual de terreno com soquete | D60: m² | E60: 13.5 | F60: 2.04 | G60: 3.68 | H60: =F60+G60 -> 5.72 | I60: =ROUND(E60*F60,2) -> 27.54 | J60: =ROUND(E60*G60,2) -> 49.68 | K60: =ROUND(I60+J60,2) -> 77.22
A61: 8.1.4 | B61: 74164/4 | C61: Lastro de brita, para fundo de viga baldrame e pisos, espessura 5cm | D61: m³ | E61: 0.81 | F61: 76.64 | G61: 22.28 | H61: =F61+G61 -> 98.92 | I61: =ROUND(E61*F61,2) -> 62.08 | J61: =ROUND(E61*G61,2) -> 18.05 | K61: =ROUND(I61+J61,2) -> 80.13
A62: 8.1.5 | B62: 74007/2 | C62: Forma de tábuas madeira de 3A para peças de concreto armado (vigas, pilares e vergas), reaproveitamento 2x, inclusive montagem e desmontagem | D62: m² | E62: 15 | F62: 34.4 | G62: 27.06 | H62: =F62+G62 -> 61.46 | I62: =ROUND(E62*F62,2) -> 516 | J62: =ROUND(E62*G62,2) -> 405.9 | K62: =ROUND(I62+J62,2) -> 921.9
A63: 8.1.6 | B63: 73990/1 | C63: Armação aço CA-50 para 1m³ de concreto (para estacas, vigas, pilares e vergas) | D63: und | E63: 1.72 | F63: 456.46 | G63: 187.95 | H63: =F63+G63 -> 644.41 | I63: =ROUND(E63*F63,2) -> 785.11 | J63: =ROUND(E63*G63,2) -> 323.27 | K63: =ROUND(I63+J63,2) -> 1108.38
A64: 8.1.7 | B64: 73406 | C64: Concreto Fck=15MPa (1:2,5:3), incluído preparo mecânico, lançamento e adensamento | D64: m³ | E64: 1.81 | F64: 375 | G64: 163.09 | H64: =F64+G64 -> 538.09 | I64: =ROUND(E64*F64,2) -> 678.75 | J64: =ROUND(E64*G64,2) -> 295.19 | K64: =ROUND(I64+J64,2) -> 973.94
A65: 8.1.8 | B65: 72183 | C65: Piso em concreto 20MPa preparo mecânico, espessura 7cm, com armação em tela soldada | D65: m² | E65: 13.5 | F65: 56.61 | G65: 30.51 | H65: =F65+G65 -> 87.12 | I65: =ROUND(E65*F65,2) -> 764.24 | J65: =ROUND(E65*G65,2) -> 411.89 | K65: =ROUND(I65+J65,2) -> 1176.13
A66: 8.2 | C66: Alvenaria
A67: 8.2.1 | B67: 87455 | C67: Alvenaria de vedação de blocos vazados de concreto de 14x19x39cm (espessura 14cm) de paredes com área líquida maior ou igual a 6m², sem vãos e argamassa de assentamento com preparo em betoneira | D67: m² | E67: 25.1 | F67: 47.75 | G67: 19.54 | H67: =F67+G67 -> 67.29 | I67: =ROUND(E67*F67,2) -> 1198.53 | J67: =ROUND(E67*G67,2) -> 490.45 | K67: =ROUND(I67+J67,2) -> 1688.98
A68: 8.3 | C68: Esquadrias e Portas
A69: 8.3.1 | B69: 68052 | C69: Janela basculante de alumínio | D69: m² | E69: 0.36 | F69: 648.35 | G69: 30.75 | H69: =F69+G69 -> 679.1 | I69: =ROUND(E69*F69,2) -> 233.41 | J69: =ROUND(E69*G69,2) -> 11.07 | K69: =ROUND(I69+J69,2) -> 244.48
A70: 8.3.2 | B70: 74067/1 | C70: Janela de correr em alumínio, com quatro folhas para vidro, duas fixas e duas móveis, incluso guarnição e vidro liso incolor | D70: m² | E70: 1.8 | F70: 641.19 | G70: 46.15 | H70: =F70+G70 -> 687.34 | I70: =ROUND(E70*F70,2) -> 1154.14 | J70: =ROUND(E70*G70,2) -> 83.07 | K70: =ROUND(I70+J70,2) -> 1237.21
A71: 8.3.3 | B71: 72117 | C71: Vidro liso comum transparente, espessura 4mm | D71: m² | E71: 1.8 | F71: 102.74 | G71: 11.1 | H71: =F71+G71 -> 113.84 | I71: =ROUND(E71*F71,2) -> 184.93 | J71: =ROUND(E71*G71,2) -> 19.98 | K71: =ROUND(I71+J71,2) -> 204.91
A72: 8.3.4 | B72: 73910/6 | C72: Porta de madeira compensada lisa para cera ou verniz, 80x210x3,5cm, incluso aduela 1A, alizar 1A e dobradiças com anel | D72: und | E72: 2 | F72: 483.29 | G72: 93.54 | H72: =F72+G72 -> 576.83 | I72: =ROUND(E72*F72,2) -> 966.58 | J72: =ROUND(E72*G72,2) -> 187.08 | K72: =ROUND(I72+J72,2) -> 1153.66
A73: 8.3.5 | B73: 74068/2 | C73: Fechadura de embutir completa, para portas externas, padrão de acabamento popular | D73: und | E73: 2 | F73: 56.55 | G73: 35.49 | H73: =F73+G73 -> 92.04 | I73: =ROUND(E73*F73,2) -> 113.1 | J73: =ROUND(E73*G73,2) -> 70.98 | K73: =ROUND(I73+J73,2) -> 184.08
A74: 8.4 | C74: Revestimentos e pinturas
A75: 8.4.1 | B75: 87264 | C75: Revestimento cerâmico para paredes internas com placas grês ou semigrês de dimensões 20x20cm aplicadas em ambientes de área menor que 5m² na altura inteira das paredes | D75: m² | E75: 24.55 | F75: 39.53 | G75: 14.51 | H75: =F75+G75 -> 54.04 | I75: =ROUND(E75*F75,2) -> 970.46 | J75: =ROUND(E75*G75,2) -> 356.22 | K75: =ROUND(I75+J75,2) -> 1326.68
A76: 8.4.2 | B76: 87247 | C76: Revestimento cerâmico para piso com placas tipo grês de dimensões 35x35cm aplicadas em ambientes de área entre 5m² e 10m² | D76: m² | E76: 16.2 | F76: 24.91 | G76: 8.36 | H76: =F76+G76 -> 33.27 | I76: =ROUND(E76*F76,2) -> 403.54 | J76: =ROUND(E76*G76,2) -> 135.43 | K76: =ROUND(I76+J76,2) -> 538.97
A77: 8.4.3 | B77: 88648 | C77: Rodapé cerâmico de 7cm de altura com placas tipo grês de dimensões 35x35cm | D77: m | E77: 11.5 | F77: 3.9 | G77: 1.35 | H77: =F77+G77 -> 5.25 | I77: =ROUND(E77*F77,2) -> 44.85 | J77: =ROUND(E77*G77,2) -> 15.53 | K77: =ROUND(I77+J77,2) -> 60.38
A78: 8.4.4 | B78: 6082 | C78: Pintura em verniz sintético brilhante em madeira, três demãos – em portas | D78: m² | E78: 10.1 | F78: 7.56 | G78: 9.63 | H78: =F78+G78 -> 17.19 | I78: =ROUND(E78*F78,2) -> 76.36 | J78: =ROUND(E78*G78,2) -> 97.26 | K78: =ROUND(I78+J78,2) -> 173.62
A79: 8.5 | C79: Cobertura
A80: 8.5.1 | B80: 73931/1 | C80: Estrutura em madeira aparelhada, para telha ondulada de fibrocimento, alumínio ou plástica, apoiada em laje ou parede | D80: m² | E80: 22 | F80: 37.21 | G80: 15.71 | H80: =F80+G80 -> 52.92 | I80: =ROUND(E80*F80,2) -> 818.62 | J80: =ROUND(E80*G80,2) -> 345.62 | K80: =ROUND(I80+J80,2) -> 1164.24
A81: 8.5.2 | B81: 74088/1 | C81: Telhamento com telha de fibrocimento ondulada, espessura 6mm, incluso juntas de vedação e acessórios de fixação, excluindo madeiramento | D81: m² | E81: 22 | F81: 26.7 | G81: 5.44 | H81: =F81+G81 -> 32.14 | I81: =ROUND(E81*F81,2) -> 587.4 | J81: =ROUND(E81*G81,2) -> 119.68 | K81: =ROUND(I81+J81,2) -> 707.08
A82: 8.5.3 | B82: 84030 | C82: Ripa de massaranduba aparelhada 1,5x4cm para entarugamento de forro, incluso fornecimento e colocação | D82: m² | E82: 61 | F82: 3.09 | G82: 2.75 | H82: =F82+G82 -> 5.84 | I82: =ROUND(E82*F82,2) -> 188.49 | J82: =ROUND(E82*G82,2) -> 167.75 | K82: =ROUND(I82+J82,2) -> 356.24
A83: 8.5.4 | B83: 11587 | C83: Forro de PVC em régua de 100mm (com colocação, exclusive estrutura de suporte) | D83: m² | E83: 13.5 | F83: 46.88 | G83: 0 | H83: =F83+G83 -> 46.88 | I83: =ROUND(E83*F83,2) -> 632.88 | J83: =ROUND(E83*G83,2) -> 0 | K83: =ROUND(I83+J83,2) -> 632.88
A84: 8.5.5 | B84: 9536 | C84: Forro de madeira para beiral, tábuas de 10x1cm com friso macho/fêmea inclusa meia-cana e testeira com altura de 15cm | D84: m² | E84: 10 | F84: 83.28 | G84: 32.23 | H84: =F84+G84 -> 115.51 | I84: =ROUND(E84*F84,2) -> 832.8 | J84: =ROUND(E84*G84,2) -> 322.3 | K84: =ROUND(I84+J84,2) -> 1155.1
A86: 9 | C86: ELÉTRICA | K86: =SUM(K87:K98) -> 3930.8
A87: 9.1 | B87: 9540 | C87: Entrada de energia elétrica aérea monofásica 50A com poste de concreto, inclusive cabeamento, caixa de proteção para medidor e aterramento | D87: und | E87: 1 | F87: 955.25 | G87: 161.1 | H87: =ROUND(F87+G87,2) -> 1116.35 | I87: =ROUND(E87*F87,2) -> 955.25 | J87: =ROUND(E87*G87,2) -> 161.1 | K87: =ROUND(I87+J87,2) -> 1116.35
A88: 9.2 | B88: 84402 | C88: Quadro de distribuição de energia para 6 (seis) disjuntores termomagnéticos monopolares sem barramento, de embutir, em chapa metálica – Fornecimento e instalação | D88: und | E88: 1 | F88: 31.51 | G88: 27.78 | H88: =F88+G88 -> 59.29 | I88: =ROUND(E88*F88,2) -> 31.51 | J88: =ROUND(E88*G88,2) -> 27.78 | K88: =ROUND(I88+J88,2) -> 59.29
A89: 9.3 | B89: 74130/1 | C89: Disjuntor termomagnético monopolar padrão NEMA (americano) 10 a 30A 240V, fornecimento e instalação | D89: und | E89: 2 | F89: 10.81 | G89: 1.96 | H89: =F89+G89 -> 12.77 | I89: =ROUND(E89*F89,2) -> 21.62 | J89: =ROUND(E89*G89,2) -> 3.92 | K89: =ROUND(I89+J89,2) -> 25.54
A90: 9.4 | B90: 74130/2 | C90: Disjuntor termomagnético monopolar padrão NEMA (americano) 35 a 50A 240V, fornecimento e instalação | D90: und | E90: 2 | F90: 17.61 | G90: 1.96 | H90: =F90+G90 -> 19.57 | I90: =ROUND(E90*F90,2) -> 35.22 | J90: =ROUND(E90*G90,2) -> 3.92 | K90: =ROUND(I90+J90,2) -> 39.14
A91: 9.5 | B91: 83407 | C91: Eletroduto de PVC rígido roscável DN 32mm (1 1/4”), inclusive conexões, fornecimento e instalação | D91: m | E91: 15 | F91: 11.51 | G91: 12.5 | H91: =F91+G91 -> 24.01 | I91: =ROUND(E91*F91,2) -> 172.65 | J91: =ROUND(E91*G91,2) -> 187.5 | K91: =ROUND(I91+J91,2) -> 360.15
A92: 9.6 | B92: 72934 | C92: Eletroduto de PVC flexível corrugado DN 20mm (3/4”), fornecimento e instalação | D92: m | E92: 40 | F92: 2.95 | G92: 3.34 | H92: =F92+G92 -> 6.29 | I92: =ROUND(E92*F92,2) -> 118 | J92: =ROUND(E92*G92,2) -> 133.6 | K92: =ROUND(I92+J92,2) -> 251.6
A93: 9.7 | B93: composição | C93: Ponto de energia em paredes, tetos e/ou pisos | D93: und | E93: 10 | F93: 56.35 | G93: 84.53 | H93: =F93+G93 -> 140.88 | I93: =ROUND(E93*F93,2) -> 563.5 | J93: =ROUND(E93*G93,2) -> 845.3 | K93: =ROUND(I93+J93,2) -> 1408.8
A94: 9.8 | B94: 72331 | C94: Interruptor simples de embutir 10A/250V 1 tecla, sem placa – Fornecimento e instalação | D94: und | E94: 2 | F94: 6.89 | G94: 5.74 | H94: =F94+G94 -> 12.63 | I94: =ROUND(E94*F94,2) -> 13.78 | J94: =ROUND(E94*G94,2) -> 11.48 | K94: =ROUND(I94+J94,2) -> 25.26
A95: 9.9 | B95: 83466 | C95: interruptor simples com 1 tomada universal conjugados com placa – Fornecimento e instalação | D95: und | E95: 1 | F95: 16.88 | G95: 10.28 | H95: =F95+G95 -> 27.16 | I95: =ROUND(E95*F95,2) -> 16.88 | J95: =ROUND(E95*G95,2) -> 10.28 | K95: =ROUND(I95+J95,2) -> 27.16
A96: 9.10 | B96: 83540 | C96: Tomada de embutir 2P+T 10A/250V com placa – Fornecimento e instalação | D96: und | E96: 6 | F96: 9.35 | G96: 5.55 | H96: =F96+G96 -> 14.9 | I96: =ROUND(E96*F96,2) -> 56.1 | J96: =ROUND(E96*G96,2) -> 33.3 | K96: =ROUND(I96+J96,2) -> 89.4
A97: 9.11 | B97: 73953 | C97: Luminária tipo calha de sobrepor, com reator de partida rápida e lâmpada fluorescente 2x40W, completa – Fornecimento e instalação | D97: und | E97: 2 | F97: 73.33 | G97: 26.85 | H97: =F97+G97 -> 100.18 | I97: =ROUND(E97*F97,2) -> 146.66 | J97: =ROUND(E97*G97,2) -> 53.7 | K97: =ROUND(I97+J97,2) -> 200.36
A98: 9.12 | B98: composição | C98: Pendente vip redondo metal 1 lâmpada bivolt | D98: und | E98: 3 | F98: 77.25 | G98: 32 | H98: =F98+G98 -> 109.25 | I98: =ROUND(E98*F98,2) -> 231.75 | J98: =ROUND(E98*G98,2) -> 96 | K98: =ROUND(I98+J98,2) -> 327.75
A100: 10 | C100: INSTALAÇÕES DE ÁGUA FRIA E ESGOTO | K100: =SUM(K101:K109) -> 4297.64
A101: 10.1 | B101: 88504 | C101: Caixa dágua em polietileno, 500 litros, com acessórios | D101: und | E101: 1 | F101: 446.08 | G101: 211.85 | H101: =F101+G101 -> 657.93 | I101: =ROUND(E101*F101,2) -> 446.08 | J101: =ROUND(E101*G101,2) -> 211.85 | K101: =ROUND(I101+J101,2) -> 657.93
A102: 10.2 | B102: SMOP | C102: Ponto de água em PVC, diâmetro médio 32mm | D102: und | E102: 4 | F102: 29.29 | G102: 72.44 | H102: =F102+G102 -> 101.73 | I102: =ROUND(E102*F102,2) -> 117.16 | J102: =ROUND(E102*G102,2) -> 289.76 | K102: =ROUND(I102+J102,2) -> 406.92
A103: 10.3 | B103: 9535 | C103: Chuveiro elétrico comum corpo plástico tipo ducha – Fornecimento e instalação | D103: und | E103: 1 | F103: 52.31 | G103: 10.41 | H103: =F103+G103 -> 62.72 | I103: =ROUND(E103*F103,2) -> 52.31 | J103: =ROUND(E103*G103,2) -> 10.41 | K103: =ROUND(I103+J103,2) -> 62.72
A104: 10.4 | B104: SMOP | C104: Ponto de esgoto, diâmetro médio 75mm | D104: und | E104: 3 | F104: 51.99 | G104: 146.36 | H104: =F104+G104 -> 198.35 | I104: =ROUND(E104*F104,2) -> 155.97 | J104: =ROUND(E104*G104,2) -> 439.08 | K104: =ROUND(I104+J104,2) -> 595.05
A105: 10.5 | B105: 72684 | C105: Ralo seco de PVC 100x100mm simples – Fornecimento e instalação | D105: und | E105: 1 | F105: 12.81 | G105: 10.74 | H105: =F105+G105 -> 23.55 | I105: =ROUND(E105*F105,2) -> 12.81 | J105: =ROUND(E105*G105,2) -> 10.74 | K105: =ROUND(I105+J105,2) -> 23.55
A106: 10.6 | B106: 72685 | C106: Ralo sifonado de PVC 100x100mm simples – Fornecimento e instalação | D106: und | E106: 1 | F106: 14.44 | G106: 13.44 | H106: =F106+G106 -> 27.88 | I106: =ROUND(E106*F106,2) -> 14.44 | J106: =ROUND(E106*G106,2) -> 13.44 | K106: =ROUND(I106+J106,2) -> 27.88
A107: 10.7 | B107: Composição | C107: Fossa séptica de concreto armado para 5 contribuintes – Fornecimento e colocação | D107: und | E107: 1 | F107: 760.66 | G107: 425.76 | H107: =F107+G107 -> 1186.42 | I107: =ROUND(E107*F107,2) -> 760.66 | J107: =ROUND(E107*G107,2) -> 425.76 | K107: =ROUND(I107+J107,2) -> 1186.42
A108: 10.8 | B108: 3282 | C108: Sumidouro concreto pré moldado, completo, para 5 contribuintes | D108: und | E108: 1 | F108: 847.15 | G108: 0 | H108: =F108+G108 -> 847.15 | I108: =ROUND(E108*F108,2) -> 847.15 | J108: =ROUND(E108*G108,2) -> 0 | K108: =ROUND(I108+J108,2) -> 847.15
A109: 10.9 | B109: 79517/2 | C109: Escavação manual em solo, profundidade maior que 1,5m até 4,00m | D109: m³ | E109: 8.85 | F109: 19.73 | G109: 35.64 | H109: =F109+G109 -> 55.37 | I109: =ROUND(E109*F109,2) -> 174.61 | J109: =ROUND(E109*G109,2) -> 315.41 | K109: =ROUND(I109+J109,2) -> 490.02
A111: 11 | C111: LOUÇAS E ACESSÓRIOS | K111: =SUM(K112:K114) -> 735.49
A112: 11.1 | B112: 86931 | C112: Vaso sanitário sifonado com caixa acoplada louça branca – padrão médio, incluso engate flexível em plástico branco, 1/2”x40cm – Fornecimento e instalação | D112: und | E112: 1 | F112: 355.53 | G112: 20.08 | H112: =F112+G112 -> 375.61 | I112: =ROUND(E112*F112,2) -> 355.53 | J112: =ROUND(E112*G112,2) -> 20.08 | K112: =ROUND(I112+J112,2) -> 375.61
A113: 11.2 | B113: 86943 | C113: Lavatório louça branca suspenso, 29,5 x 39cm ou equivalente, padrão popular, incluso sifão flexível em PVC, válvula e engate flexível 30cm em plástico e torneira cromada de mesa, padrão popular – Fornecimento e instalação | D113: und | E113: 1 | F113: 121.88 | G113: 17.01 | H113: =F113+G113 -> 138.89 | I113: =ROUND(E113*F113,2) -> 121.88 | J113: =ROUND(E113*G113,2) -> 17.01 | K113: =ROUND(I113+J113,2) -> 138.89
A114: 11.3 | B114: 86929 | C114: Tanque de mármore sintético suspenso, 22L ou equivalente, incluso sifão flexível em PVC, válvula plástica e torneira de metal cromado padrão popular – Fornecimento e instalação | D114: und | E114: 1 | F114: 199.53 | G114: 21.46 | H114: =F114+G114 -> 220.99 | I114: =ROUND(E114*F114,2) -> 199.53 | J114: =ROUND(E114*G114,2) -> 21.46 | K114: =ROUND(I114+J114,2) -> 220.99
A116: TOTAL DA OBRA | G116: =K7+K10+K18+K32+K37+K44+K49+K56+K86+K100+K111 -> 99642.23
C119: Pedreiro | E119: 3.5 | F119: 0 | G119: 26.82 | H119: =F119+G119 -> 26.82 | I119: =E119*F119 -> 0 | J119: =E119*G119 -> 93.87 | K119: =I119+J119 -> 93.87
C120: servente | E120: 13 | F120: 0 | G120: 18.98 | H120: =F120+G120 -> 18.98 | I120: =E120*F120 -> 0 | J120: =E120*G120 -> 246.74 | K120: =I120+J120 -> 246.74
C121: areia lavada tipo média | E121: 0.12 | F121: 72 | G121: 0 | H121: =F121+G121 -> 72 | I121: =E121*F121 -> 8.64 | J121: =E121*G121 -> 0 | K121: =I121+J121 -> 8.64
C122: pedra britada 2 | E122: 0.2 | F122: 66 | G122: 0 | H122: =F122+G122 -> 66 | I122: =E122*F122 -> 13.2 | J122: =E122*G122 -> 0 | K122: =I122+J122 -> 13.2
C123: cimento portland CPII-E-32 | E123: 40 | F123: 0.47 | G123: 0 | H123: =F123+G123 -> 0.47 | I123: =E123*F123 -> 18.8 | J123: =E123*G123 -> 0 | K123: =I123+J123 -> 18.8
C124: Fossa séptica de concreto armado | E124: 1 | F124: 567.89 | G124: 0 | H124: =F124+G124 -> 567.89 | I124: =E124*F124 -> 567.89 | J124: =E124*G124 -> 0 | K124: =I124+J124 -> 567.89
I126: =SUM(I119:I124) -> 608.53 | J126: =SUM(J119:J124) -> 340.61 | K126: =SUM(K119:K124) -> 949.14
C127: 3282 SUMIDOURO CONCRETO PRE MOLDADO, COMPLETO, PARA 5 CONTRIBUINTES UN 677,72
C130: FONTE: TABELA SEIL/PRED (AGOSTO/2014) e SMOP 2010

Sheet CRONOGRAMA FÍSICO-FINANCEIRO
A2: CRONOGRAMA FÍSICO-FINANCEIRO
A3: =ORÇAMENTO!A3 -> 0
A5: ITEM | B5: DISCRIMINAÇÃO DOS SERVIÇOS | C5: % | D5: MÊS 1 | E5: MÊS 2 | F5: MÊS 3 | G5: MÊS 4 | H5: MÊS 5 | I5: TOTAL
A7: 1 | B7: =ORÇAMENTO!C7 -> 0 | C7: =I7/I29 -> 0.002007181092 | I7: =ORÇAMENTO!K7 -> 200
D8: =I7 -> 200
A9: 2 | B9: =ORÇAMENTO!C10 -> 0 | C9: =I9/I29 -> 0.07145082963 | I9: =ORÇAMENTO!K10 -> 7119.52
D10: =I9*0.75 -> 5339.64 | E10: =I9*0.25 -> 1779.88
A11: 3 | B11: =ORÇAMENTO!C18 -> 0 | C11: =I11/I29 -> 0.08771562017 | I11: =ORÇAMENTO!K18 -> 8740.18
E12: =I11*0.3 -> 2622.054 | F12: =I11*0.35 -> 3059.063 | G12: =I11*0.35 -> 3059.063
A13: 4 | B13: =ORÇAMENTO!C32 -> 0 | C13: =I13/I29 -> 0.2566957805 | I13: =ORÇAMENTO!K32 -> 25577.74
E14: =I13*0.25 -> 6394.435 | F14: =I13*0.25 -> 6394.435 | G14: =I13*0.25 -> 6394.435 | H14: =I13*0.25 -> 6394.435
A15: 5 | B15: =ORÇAMENTO!C37 -> 0 | C15: =I15/I29 -> 0.1416696515 | I15: =ORÇAMENTO!K37 -> 14116.28
F16: =I15*0.35 -> 4940.698 | G16: =I15*0.35 -> 4940.698 | H16: =I15*0.3 -> 4234.884
A17: 6 | B17: =ORÇAMENTO!C44 -> 0 | C17: =I17/I29 -> 0.02728140468 | I17: =ORÇAMENTO!K44 -> 2718.38
H18: =I17 -> 2718.38
A19: 7 | B19: =ORÇAMENTO!C49 -> 0 | C19: =I19/I29 -> 0.161005128 | I19: =ORÇAMENTO!K49 -> 16042.91
F20: =I19*0.25 -> 4010.7275 | G20: =I19*0.35 -> 5615.0185 | H20: =I19*0.4 -> 6417.164
A21: 8 | B21: =ORÇAMENTO!C56 -> 0 | C21: =I21/I29 -> 0.1622132503 | I21: =ORÇAMENTO!K56 -> 16163.29
D22: =I21*0.4 -> 6465.316 | E22: =I21*0.25 -> 4040.8225 | F22: =I21*0.2 -> 3232.658 | G22: =I21*0.15 -> 2424.4935
A23: 9 | B23: =ORÇAMENTO!C86 -> 0 | C23: =I23/I29 -> 0.03944913718 | I23: =ORÇAMENTO!K86 -> 3930.8
F24: =I23*0.4 -> 1572.32 | G24: =I23*0.3 -> 1179.24 | H24: =I23*0.3 -> 1179.24
A25: 10 | B25: =ORÇAMENTO!C100 -> 0 | C25: =I25/I29 -> 0.04313070874 | I25: =ORÇAMENTO!K100 -> 4297.64
F26: =I25*0.4 -> 1719.056 | G26: =I25*0.3 -> 1289.292 | H26: =I25*0.3 -> 1289.292
A27: 11 | B27: =ORÇAMENTO!C111 -> 0 | C27: =I27/I29 -> 0.007381308106 | I27: =ORÇAMENTO!K111 -> 735.49
H28: =I27 -> 735.49
A29: TOTAIS | C29: =SUM(C7:C28) -> 1 | D29: =SUM(D7:D28) -> 12004.956 | E29: =SUM(E7:E28) -> 14837.1915 | F29: =SUM(F7:F28) -> 24928.9575 | G29: =SUM(G7:G28) -> 24902.24 | H29: =SUM(H7:H28) -> 22968.885 | I29: =SUM(I7:I28) -> 99642.23
A30: PARTICIPAÇÃO | C30: % | D30: =D29/I29 -> 0.1204806035 | E30: =E29/I29 -> 0.1489046512 | F30: =F29/I29 -> 0.2501846607 | G30: =G29/I29 -> 0.2499165264 | H30: =H29/I29 -> 0.2305135584 | I30: =SUM(D30:H30) -> 1
